bitfinex/quotes_BTCUSD_20220304
["timestamp","ask_amount","ask_price","bid_price","bid_amount"]
[1646353931832,0.27355205,42197.0,42194.0,0.03551429]
[1646353932033,0.26361066,42197.0,42196.0,0.00011024]
[1646353932731,0.26061066,42197.0,42196.0,0.00011024]
[1646353933029,0.06118861,42197.0,42196.0,0.00011024]
[1646353933277,0.33130453,42197.0,42196.0,0.00011024]
[1646353933677,0.43130453,42197.0,42196.0,0.00011024]
[1646353933879,0.6261323,42197.0,42196.0,0.00011024]
[1646353935082,0.9261323,42197.0,42196.0,0.00011024]
[1646353935282,0.9261323,42197.0,42183.0,0.1666]
[1646353935283,1.4,42196.0,42183.0,0.1666]
[1646353935484,1.4,42196.0,42177.0,0.177873]
[1646353935485,0.15,42185.0,42176.0,0.44093319]
[1646353935687,0.15,42178.0,42176.0,0.002]
[1646353935885,0.661258,42177.0,42176.0,0.002]
[1646353936090,0.384798,42177.0,42169.0,0.0021]
[1646353936282,0.1,42176.0,42169.0,0.0021]
[1646353936482,0.059329,42173.0,42169.0,0.0021]
[1646353936885,0.15,42175.0,42169.0,0.0021]
[1646353937132,0.15,42175.0,42170.0,0.059325]
[1646353937432,0.25,42175.0,42170.0,0.059325]
[1646353937632,0.24555519,42175.0,42170.0,0.059325]
[1646353937833,0.1,42175.0,42170.0,0.059325]
[1646353938433,0.059323,42176.0,42170.0,0.059325]
[1646353938833,0.06755041,42175.0,42170.0,0.059325]
[1646353939233,0.059323,42176.0,42170.0,0.059325]
[1646353941086,0.059323,42176.0,42171.0,0.91838142]
[1646353941284,0.479308,42185.0,42175.0,0.059307]
[1646353941285,0.108658,42181.0,42175.0,0.059307]
[1646353941479,0.108658,42181.0,42176.0,0.3474]
[1646353941680,0.059307,42182.0,42176.0,0.3474]
[1646353942085,0.059307,42182.0,42176.0,0.0474]
[1646353942086,0.177936,42182.0,42176.0,0.0474]
[1646353943283,0.42,42185.0,42177.0,0.359305]
[1646353943483,0.42,42185.0,42178.0,0.0474]
[1646353943681,0.538616,42185.0,42178.0,0.0474]
[1646353944081,0.73324515,42185.0,42178.0,0.0474]
[1646353944281,0.27844772,42182.0,42178.0,0.0474]
[1646353944523,0.73324515,42185.0,42178.0,0.0474]
[1646353945124,0.0145563,42184.0,42178.0,0.0474]
[1646353945325,0.17547148,42182.0,42172.0,0.19508142]
[1646353945524,0.17547148,42182.0,42171.0,0.568029]
[1646353945525,0.33222062,42182.0,42171.0,0.31371042]
[1646353945727,0.33222062,42182.0,42170.0,0.19508142]
[1646353945728,0.41080832,42181.0,42170.0,0.19508142]
[1646353945927,0.01119038,42180.0,42171.0,0.19508142]
[1646353946127,0.01441837,42179.0,42170.0,0.19508142]
[1646353946324,0.01441837,42179.0,42169.0,0.19718142]
[1646353946524,0.01105071,42178.0,42169.0,0.120741]
[1646353946724,0.01225126,42176.0,42169.0,0.120741]
[1646353946926,0.01022481,42175.0,42171.0,0.059321]
[1646353947127,0.059315,42179.0,42171.0,0.059321]
[1646353947332,0.1,42186.0,42173.0,0.7233]
[1646353947528,0.1,42186.0,42174.0,0.0474]
[1646353947725,0.01249682,42185.0,42174.0,0.0474]
[1646353947926,0.01194779,42184.0,42176.0,0.05931]
[1646353948128,0.01160343,42183.0,42176.0,0.10671]
[1646353948381,0.01388502,42182.0,42176.0,0.10671]
[1646353948581,0.01301101,42181.0,42176.0,0.10671]
[1646353948883,0.01275754,42186.0,42176.0,0.10671]
[1646353949081,0.34443044,42187.0,42176.0,0.10671]
[1646353949082,0.01077399,42185.0,42176.0,0.10671]
[1646353949282,0.01329791,42186.0,42176.0,0.10671]
[1646353949481,0.01451693,42185.0,42176.0,0.10671]
[1646353949680,0.118615,42186.0,42176.0,0.10671]
[1646353949681,0.01010579,42184.0,42176.0,0.10671]
[1646353949884,0.01318598,42185.0,42176.0,0.10671]
[1646353950081,0.01051324,42184.0,42176.0,0.10671]
[1646353950282,0.67305426,42187.0,42175.0,0.11862]
[1646353950283,0.059316,42183.0,42175.0,0.11862]
[1646353950481,0.01141219,42181.0,42175.0,0.11862]
[1646353950681,0.01287608,42180.0,42175.0,0.11862]
[1646353950882,0.01262041,42179.0,42175.0,0.11862]
[1646353951082,0.01272122,42178.0,42175.0,0.11862]
[1646353951282,0.01255054,42176.0,42175.0,0.11862]
[1646353951483,0.118626,42184.0,42176.0,0.02510108]
[1646353951683,0.0128643,42184.0,42178.0,0.059309]
[1646353951883,0.01182994,42183.0,42178.0,0.059309]
[1646353952127,0.01155632,42182.0,42178.0,0.059309]
[1646353952323,0.01015829,42181.0,42178.0,0.106709]
[1646353952629,0.14555519,42189.0,42180.0,0.01200254]
[1646353952630,0.01436159,42189.0,42180.0,0.01200254]
[1646353952825,0.01436159,42189.0,42183.0,0.01393668]
[1646353953023,0.01436159,42189.0,42184.0,0.7707]
[1646353953223,0.01436159,42189.0,42186.0,0.7233]
[1646353953428,0.01359962,42190.0,42189.0,0.01567875]
[1646353953725,0.01359962,42190.0,42189.0,0.7707]
[1646353953923,0.01359962,42190.0,42189.0,0.87500371]
[1646353954224,0.2217208,42194.0,42189.0,0.14670371]
[1646353954225,0.0137515,42193.0,42189.0,0.14670371]
[1646353954423,0.0137515,42193.0,42189.0,0.0424]
[1646353954424,0.17872742,42193.0,42189.0,0.0424]
[1646353954624,0.0108798,42192.0,42189.0,0.0424]
[1646353954822,0.0105779,42191.0,42189.0,0.0424]
[1646353955024,0.01320486,42194.0,42189.0,0.0424]
[1646353955226,0.01368664,42193.0,42189.0,0.0424]
[1646353955423,0.01263457,42192.0,42189.0,0.0424]
[1646353955624,0.01084148,42191.0,42189.0,0.0424]
[1646353955873,0.01109242,42190.0,42189.0,0.0424]
[1646353956076,0.26982192,42195.0,42189.0,0.0424]
[1646353956272,0.32911992,42195.0,42189.0,0.0424]
[1646353956471,0.59526009,42195.0,42189.0,0.0424]
[1646353957472,0.59526009,42195.0,42189.0,0.0374]
[1646353957673,0.32911992,42195.0,42189.0,0.0374]
[1646353957877,0.31587349,42195.0,42189.0,0.0374]
[1646353958277,0.10534957,42195.0,42189.0,0.0374]
[1646353958478,0.01184,42202.0,42189.0,0.879283]
[1646353958677,0.31155519,42203.0,42189.0,0.7607]
[1646353958984,0.15738519,42209.0,42190.0,0.02354]
[1646353959178,0.14555519,42209.0,42192.0,0.74684]
[1646353959538,0.18950029,42207.0,42193.0,0.79424]
[1646353959738,0.05928,42206.0,42194.0,0.0474]
[1646353959939,0.18950029,42207.0,42194.0,0.0474]
[1646353960139,0.24878329,42207.0,42202.0,0.059277]
[1646353960739,0.059283,42207.0,42202.0,0.059277]
[1646353960949,0.710258,42211.0,42202.0,0.059277]
[1646353960950,0.1717,42211.0,42202.0,0.0474]
[1646353961141,0.8351,42213.0,42207.0,0.059271]
[1646353961344,0.8351,42213.0,42207.0,0.0474]
[1646353961741,0.4151,42213.0,42207.0,0.0474]
[1646353962340,0.4151,42213.0,42211.0,0.118522]
[1646353962541,0.4151,42213.0,42212.0,0.0474]
[1646353963583,0.14555519,42225.0,42213.0,0.7233]
[1646353963789,0.01183,42226.0,42215.0,0.841804]
[1646353963790,0.17217049,42226.0,42215.0,0.841804]
[1646353963983,0.17217049,42226.0,42216.0,0.0474]
[1646353964583,0.26482761,42223.0,42216.0,0.0474]
[1646353964789,0.17217049,42226.0,42217.0,0.7233]
[1646353964985,0.17217049,42226.0,42216.0,0.07094]
[1646353964986,0.14555519,42228.0,42222.0,0.118487]
[1646353965184,0.14555519,42228.0,42223.0,0.0474]
[1646353965790,0.28033646,42225.0,42223.0,0.0474]
[1646353965984,0.20146814,42224.0,42223.0,0.0474]
[1646353966185,0.21554723,42224.0,42223.0,0.0474]
[1646353967224,0.01407909,42224.0,42223.0,0.0474]
[1646353967422,0.28033646,42225.0,42223.0,0.0474]
[1646353968024,0.118505,42227.0,42223.0,0.0474]
[1646353968326,0.21018782,42225.0,42223.0,0.0474]
[1646353969726,0.059252,42226.0,42223.0,0.0474]
[1646353969925,0.118505,42227.0,42223.0,0.0474]
[1646353970126,0.118505,42227.0,42224.0,0.059246]
[1646353970781,0.059249,42228.0,42224.0,0.059246]
[1646353970987,0.001,42235.0,42225.0,0.0474]
[1646353971178,0.001,42235.0,42230.0,0.059231]
[1646353971380,0.001,42235.0,42231.0,0.0474]
[1646353971582,0.66399269,42232.0,42231.0,0.0474]
[1646353971779,0.83127841,42232.0,42231.0,0.0474]
[1646353972179,0.9768336,42232.0,42231.0,0.0474]
[1646353972580,0.9718336,42232.0,42231.0,0.0474]
[1646353972882,0.19692338,42227.0,42221.0,0.0474]
[1646353973883,0.20994089,42222.0,42221.0,0.0474]
[1646353974083,0.20994089,42222.0,42215.0,0.118506]
[1646353974929,0.20994089,42222.0,42211.0,0.118517]
[1646353974930,0.22166046,42216.0,42211.0,0.118517]
[1646353975527,0.22166046,42216.0,42203.0,0.5356]
[1646353975728,0.22166046,42216.0,42212.0,0.059262]
[1646353975928,0.14555519,42217.0,42212.0,0.059262]
[1646353976133,0.059265,42218.0,42212.0,0.059262]
[1646353976328,0.054265,42218.0,42212.0,0.059262]
[1646353976528,0.1,42220.0,42209.0,0.7233]
[1646353976729,0.14555519,42222.0,42211.0,0.7233]
[1646353976932,0.14555519,42222.0,42219.0,0.059249]
[1646353977130,0.4783622,42225.0,42219.0,0.059249]
[1646353977329,0.24555519,42225.0,42219.0,0.059249]
[1646353977529,0.1,42225.0,42219.0,0.059249]
[1646353977729,0.01354699,42225.0,42219.0,0.059249]
[1646353977929,0.2185,42227.0,42219.0,0.059249]
[1646353977930,0.01467808,42224.0,42219.0,0.059249]
[1646353978130,0.01145106,42223.0,42219.0,0.059249]
[1646353978376,0.2185,42227.0,42219.0,0.059249]
[1646353978377,0.01101047,42222.0,42219.0,0.059249]
[1646353978680,0.25332122,42226.0,42222.0,0.02036559]
[1646353978875,0.01244977,42225.0,42222.0,0.02036559]
[1646353979076,0.277746,42227.0,42222.0,0.02036559]
[1646353979077,0.01090213,42226.0,42222.0,0.02036559]
[1646353979276,0.01090213,42226.0,42223.0,0.059242]
[1646353979479,0.01090213,42226.0,42224.0,0.0474]
[1646353979480,0.3,42226.0,42224.0,0.0474]
[1646353979678,0.01322603,42225.0,42222.0,0.02036559]
[1646353979876,0.14555519,42225.0,42222.0,0.02036559]
[1646353980077,0.1,42227.0,42222.0,0.02036559]
[1646353980280,0.01026873,42224.0,42222.0,0.02036559]
[1646353980480,0.29755231,42223.0,42222.0,0.02036559]
[1646353981677,0.16317464,42224.0,42222.0,0.02036559]
[1646353981678,0.22243164,42224.0,42222.0,0.02036559]
[1646353981879,0.059255,42225.0,42222.0,0.02036559]
[1646353982135,0.1,42227.0,42222.0,0.02036559]
[1646353983337,0.56065519,42228.0,42222.0,0.02036559]
[1646353983539,0.56065519,42228.0,42223.0,0.0474]
[1646353983540,0.4151,42228.0,42223.0,0.0474]
[1646353983845,0.14655519,42235.0,42223.0,0.06049704]
[1646353984039,0.001,42235.0,42223.0,0.78379704]
[1646353984538,0.001,42235.0,42227.0,0.118466]
[1646353984744,0.001,42235.0,42230.0,0.059235]
[1646353984943,0.001,42235.0,42231.0,0.3436]
[1646353985882,0.001,42235.0,42233.0,0.118448]
[1646353986082,0.001,42235.0,42234.0,1.13092744]
[1646353986286,0.001,42235.0,42234.0,1.19406111]
[1646353986483,0.001,42235.0,42234.0,0.48259111]
[1646353986680,0.001,42235.0,42234.0,0.47076111]
[1646353987282,0.001,42235.0,42234.0,1.19406111]
[1646353988184,0.001,42235.0,42234.0,0.89406111]
[1646353988584,0.001,42235.0,42234.0,0.98976111]
[1646353988787,0.002,42241.0,42234.0,1.00159111]
[1646353988999,0.002,42241.0,42239.0,0.806041]
[1646353989285,0.002,42241.0,42240.0,0.93630461]
[1646353989526,0.002,42241.0,42240.0,0.89044]
[1646353989725,0.001,42247.0,42243.0,0.7233]
[1646353989927,0.001,42247.0,42242.0,0.177603]
[1646353989928,0.001,42247.0,42246.0,0.10418393]
[1646353990125,0.001,42247.0,42246.0,1.12613252]
[1646353990525,0.001,42247.0,42246.0,1.09426171]
[1646353990925,0.001,42247.0,42246.0,3.43012228]
[1646353991125,0.001,42247.0,42246.0,3.36943514]
[1646353991532,0.001,42247.0,42246.0,3.37643514]
[1646353991725,0.001,42247.0,42246.0,3.25325736]
[1646353992427,0.001,42247.0,42246.0,3.15325736]
[1646353992626,0.001,42247.0,42246.0,3.20276057]
[1646353992828,0.001,42247.0,42246.0,3.20171023]
[1646353993376,0.001,42247.0,42246.0,3.3069445]
[1646353994182,0.001,42247.0,42246.0,3.3304845]
[1646353995379,0.001,42247.0,42246.0,3.3374845]
[1646353996681,0.001,42247.0,42246.0,3.3304845]
[1646353997825,0.001,42247.0,42246.0,3.23115069]
[1646353999627,0.001,42247.0,42246.0,3.25469069]
[1646353999827,0.01019929,42257.0,42246.0,3.25304898]
[1646354000031,0.021,42261.0,42258.0,0.7233]
[1646354000228,0.021,42261.0,42259.0,0.3436]
[1646354000429,0.021,42261.0,42260.0,0.3]
[1646354000629,0.021,42261.0,42260.0,0.3436]
[1646354000882,0.021,42261.0,42260.0,0.0436]
[1646354001282,0.021,42261.0,42260.0,0.0386]
[1646354002486,0.021,42261.0,42260.0,0.0336]
[1646354002885,0.021,42261.0,42260.0,0.13774571]
[1646354003086,0.021,42261.0,42260.0,0.3336]
[1646354003288,0.021,42261.0,42260.0,0.42894713]
[1646354003485,0.021,42261.0,42260.0,0.43594713]
[1646354003887,0.016,42261.0,42260.0,1.15924713]
[1646354004828,0.016,42261.0,42260.0,1.15224713]
[1646354005029,0.006,42261.0,42260.0,1.15224713]
[1646354005429,0.006,42261.0,42260.0,1.14724713]
[1646354006230,0.006,42261.0,42260.0,0.12394713]
[1646354006430,0.006,42261.0,42260.0,1.06858063]
[1646354006630,0.001,42261.0,42260.0,1.06858063]
[1646354007333,0.001,42261.0,42260.0,0.0286]
[1646354007531,0.001,42261.0,42260.0,0.0346]
[1646354007931,0.001,42261.0,42260.0,0.006]
[1646354008582,0.001,42262.0,42261.0,0.002]
[1646354011683,0.01551608,42262.0,42261.0,0.002]
[1646354012332,0.22281974,42262.0,42261.0,0.002]
[1646354012531,0.20830366,42262.0,42261.0,0.002]
[1646354013128,0.30830366,42262.0,42261.0,0.002]
[1646354013527,0.30830366,42262.0,42261.0,0.005]
[1646354014730,0.001,42262.0,42261.0,0.005]
[1646354014933,0.001,42262.0,42261.0,0.002]
[1646354015529,0.001,42262.0,42261.0,0.007]
[1646354017280,0.001,42262.0,42261.0,0.002]
[1646354019532,0.001,42262.0,42261.0,0.007]
[1646354020329,0.001,42262.0,42256.0,0.118383]
[1646354020330,0.005,42261.0,42256.0,0.118383]
[1646354020729,0.14555519,42259.0,42256.0,0.118383]
[1646354023280,0.14555519,42259.0,42256.0,0.12882745]
[1646354023479,0.14555519,42259.0,42256.0,0.01044445]
[1646354023683,0.01330837,42258.0,42256.0,0.01044445]
[1646354023878,0.1873174,42257.0,42256.0,0.01044445]
[1646354024379,0.2245955,42257.0,42256.0,0.00600445]
[1646354024578,0.2245955,42257.0,42244.0,0.77290645]
[1646354024579,0.2245955,42257.0,42244.0,1.19132145]
[1646354024877,0.44892527,42258.0,42244.0,1.19132145]
[1646354024878,0.20646617,42258.0,42244.0,1.19132145]
[1646354025079,0.14555519,42255.0,42244.0,1.04684]
[1646354025287,0.14555519,42258.0,42246.0,0.7233]
[1646354025481,0.14555519,42258.0,42243.0,0.6628]
[1646354025482,0.14555519,42258.0,42248.0,0.01643956]
[1646354025679,0.17282738,42257.0,42249.0,0.161999]
[1646354025881,0.059209,42259.0,42249.0,0.161999]
[1646354025882,0.071209,42259.0,42250.0,0.3]
[1646354026078,0.14555519,42255.0,42250.0,0.3]
[1646354026278,0.14555519,42255.0,42249.0,0.118399]
[1646354026479,0.14555519,42255.0,42254.0,0.0999]
[1646354027539,0.071209,42259.0,42254.0,0.0999]
[1646354027741,0.012,42259.0,42255.0,0.3]
[1646354028341,0.012,42259.0,42256.0,0.06012053]
[1646354028540,0.012,42259.0,42256.0,0.78342053]
[1646354028743,0.012,42259.0,42258.0,0.01276897]
[1646354029041,0.012,42259.0,42258.0,0.35636897]
[1646354029639,0.012,42259.0,42258.0,1.18381468]
[1646354029840,0.012,42259.0,42258.0,1.19625524]
[1646354030038,0.012,42259.0,42258.0,1.0943566]
[1646354030544,0.012,42259.0,42258.0,0.3710566]
[1646354031786,0.012,42259.0,42258.0,0.0710566]
[1646354032186,0.012,42259.0,42258.0,0.0436]
[1646354032389,0.012,42259.0,42254.0,0.118385]
[1646354033002,0.012,42259.0,42247.0,0.166]
[1646354033196,0.14555519,42256.0,42246.0,0.1]
[1646354033390,0.14555519,42256.0,42247.0,0.3]
[1646354033591,0.14555519,42256.0,42248.0,0.118404]
[1646354034931,0.14555519,42256.0,42252.0,0.059202]
[1646354035738,0.18700845,42259.0,42252.0,0.059202]
[1646354035739,0.012,42259.0,42252.0,0.059202]
[1646354035935,0.012,42259.0,42257.0,0.059192]
[1646354036133,0.012,42259.0,42258.0,0.3]
[1646354036333,0.012,42259.0,42258.0,0.3436]
[1646354036933,0.012,42259.0,42258.0,1.0669]
[1646354037533,0.012,42259.0,42258.0,0.3496]
[1646354037733,0.012,42259.0,42258.0,0.4896]
[1646354038324,0.012,42259.0,42258.0,1.2129]
[1646354038688,0.17,42273.0,42267.0,0.059181]
[1646354038887,0.01283,42277.0,42267.0,0.059181]
[1646354039087,0.14555519,42275.0,42267.0,0.059181]
[1646354039390,0.14555519,42269.0,42267.0,0.059181]
[1646354040087,0.14555519,42273.0,42267.0,0.059181]
[1646354040593,0.14555519,42273.0,42271.0,0.059175]
[1646354041490,0.14555519,42273.0,42271.0,0.063175]
[1646354041690,0.001,42276.0,42272.0,0.3436]
[1646354041903,0.001,42276.0,42274.0,0.118328]
[1646354042148,0.001,42276.0,42275.0,0.0436]
[1646354043647,0.001,42276.0,42275.0,0.0476]
[1646354044249,0.001,42276.0,42275.0,0.3476]
[1646354044848,0.001,42276.0,42275.0,0.3436]
[1646354045454,0.001,42276.0,42275.0,0.3]
[1646354045652,0.001,42276.0,42275.0,0.304]
[1646354046082,0.001,42276.0,42275.0,0.3514]
[1646354046285,0.001,42276.0,42275.0,1.0747]
[1646354046679,0.001,42276.0,42275.0,1.17878289]
[1646354046879,0.001,42276.0,42275.0,1.17478289]
[1646354047079,0.001,42276.0,42275.0,0.7707]
[1646354047281,0.14555519,42283.0,42275.0,0.7707]
[1646354047282,0.14555519,42288.0,42276.0,0.02354]
[1646354047482,0.016,42290.0,42288.0,0.05915]
[1646354047681,0.016,42290.0,42289.0,0.0474]
[1646354047883,0.013,42290.0,42289.0,0.0474]
[1646354049083,0.003,42290.0,42289.0,0.0474]
[1646354049731,0.003,42290.0,42289.0,0.0514]
[1646354050333,0.015,42290.0,42289.0,0.0514]
[1646354050931,0.015,42290.0,42289.0,0.0474]
[1646354051731,0.015,42290.0,42289.0,0.0514]
[1646354052931,0.015,42290.0,42289.0,0.0474]
[1646354053137,0.20570319,42298.0,42290.0,1.4]
[1646354053138,0.001,42298.0,42290.0,1.4]
[1646354053387,0.001,42298.0,42291.0,0.0474]
[1646354053586,0.001,42298.0,42294.0,0.20775931]
[1646354053788,0.001,42298.0,42292.0,0.3]
[1646354053789,0.001,42298.0,42295.0,0.0474]
[1646354053988,0.001,42298.0,42296.0,0.0474]
[1646354054186,0.14455519,42303.0,42297.0,0.1874]
[1646354054385,0.118284,42307.0,42293.0,0.01676343]
[1646354054386,0.14455519,42305.0,42298.0,0.3474]
[1646354054584,0.14455519,42305.0,42299.0,0.0474]
[1646354055584,0.14455519,42305.0,42299.0,0.0504]
[1646354056591,0.14455519,42305.0,42302.0,0.059132]
[1646354056786,0.14455519,42305.0,42302.0,0.106532]
[1646354057632,0.14455519,42305.0,42302.0,0.111532]
[1646354058232,0.13955519,42306.0,42302.0,0.111532]
[1646354058731,0.24451193,42308.0,42302.0,0.111532]
[1646354059033,0.24451193,42308.0,42302.0,0.044377]
[1646354059034,0.13955519,42303.0,42302.0,0.044377]
[1646354059236,0.13955519,42303.0,42296.0,0.0474]
[1646354059631,0.11261937,42300.0,42297.0,0.004]
[1646354060787,0.11261937,42300.0,42298.0,0.059138]
[1646354061587,0.11261937,42300.0,42298.0,0.064138]
[1646354061791,0.11261937,42300.0,42299.0,0.0474]
[1646354063190,0.11261937,42304.0,42299.0,0.0474]
[1646354063389,0.11261937,42304.0,42303.0,0.059131]
[1646354063589,0.11261937,42304.0,42303.0,0.106531]
[1646354064190,0.11261937,42304.0,42303.0,0.0474]
[1646354065233,0.10761937,42304.0,42303.0,0.0474]
[1646354065433,0.10761937,42304.0,42303.0,0.1874]
[1646354065636,0.10761937,42304.0,42303.0,0.1924]
[1646354065837,0.10761937,42304.0,42303.0,0.4924]
[1646354066041,0.024,42308.0,42303.0,0.51554814]
[1646354066042,0.13161937,42308.0,42303.0,0.51554814]
[1646354066239,0.13161937,42308.0,42303.0,0.411528]
[1646354067439,0.13161937,42308.0,42303.0,0.406528]
[1646354067639,0.13161937,42308.0,42303.0,0.3514]
[1646354068904,0.13161937,42308.0,42303.0,0.3474]
[1646354069505,0.014,42308.0,42303.0,0.3474]
[1646354069710,0.10761937,42306.0,42303.0,0.3534]
[1646354069908,0.10761937,42306.0,42305.0,0.10400539]
[1646354070106,0.10761937,42306.0,42305.0,0.15140539]
[1646354071310,0.014,42308.0,42305.0,0.45140539]
[1646354071510,0.014,42308.0,42307.0,0.14]
[1646354071710,0.10761937,42313.0,42307.0,0.14]
[1646354071711,0.10761937,42313.0,42308.0,0.028]
[1646354071910,0.10761937,42313.0,42309.0,0.0474]
[1646354072140,0.11825,42316.0,42309.0,0.0474]
[1646354072345,0.10761937,42310.0,42309.0,0.106518]
[1646354072541,0.10261937,42310.0,42309.0,0.246518]
[1646354072742,0.10261937,42314.0,42309.0,0.546518]
[1646354072943,0.10261937,42314.0,42309.0,0.106518]
[1646354073141,0.10261937,42314.0,42309.0,0.406518]
[1646354074544,0.10261937,42311.0,42309.0,0.106518]
[1646354074744,0.10261937,42311.0,42310.0,0.10400539]
[1646354074950,0.56096077,42311.0,42308.0,0.028]
[1646354075346,0.72306564,42311.0,42308.0,0.028]
[1646354075546,0.72306564,42311.0,42308.0,0.0193]
[1646354076282,0.74660564,42311.0,42308.0,0.0193]
[1646354076480,0.28826424,42311.0,42308.0,0.0193]
[1646354076680,0.10261937,42311.0,42308.0,0.0193]
[1646354077980,0.059124,42314.0,42308.0,0.0193]
[1646354078185,0.1738,42315.0,42309.0,0.0474]
[1646354078381,0.10261937,42317.0,42309.0,0.0474]
[1646354079080,0.36952197,42318.0,42309.0,0.0474]
[1646354079283,0.2669026,42318.0,42309.0,0.0474]
[1646354079531,0.16173637,42318.0,42312.0,0.059118]
[1646354079730,0.16173637,42318.0,42313.0,0.0474]
[1646354079932,0.059117,42318.0,42313.0,0.0474]
[1646354080134,0.10261937,42314.0,42313.0,0.0474]
[1646354080532,0.09761937,42314.0,42308.0,0.0193]
[1646354080932,0.3436383,42314.0,42308.0,0.0193]
[1646354081831,0.09761937,42314.0,42308.0,0.0193]
[1646354082032,0.09761937,42311.0,42308.0,0.0193]
[1646354083786,0.059127,42314.0,42308.0,0.0193]
[1646354083985,0.23472946,42314.0,42308.0,0.0193]
[1646354084384,0.09761937,42313.0,42308.0,0.0193]
[1646354084986,0.059127,42314.0,42308.0,0.0193]
[1646354085190,0.09761937,42309.0,42308.0,0.0193]
[1646354086587,0.044127,42314.0,42308.0,0.0193]
[1646354086787,0.09761937,42312.0,42308.0,0.0193]
[1646354089333,0.09761937,42312.0,42308.0,0.0667]
[1646354090536,0.09261937,42312.0,42308.0,0.0667]
[1646354094188,0.09261937,42312.0,42308.0,0.0193]
[1646354094634,0.27000511,42312.0,42308.0,0.0193]
[1646354094835,0.09261937,42309.0,42308.0,0.0193]
[1646354095036,0.39261937,42309.0,42308.0,0.0193]
[1646354095233,0.09261937,42309.0,42308.0,0.0193]
[1646354098289,0.09261937,42315.0,42308.0,0.0193]
[1646354098583,0.09261937,42315.0,42308.0,0.0667]
[1646354099983,0.083119,42318.0,42308.0,0.0667]
[1646354100182,0.09261937,42314.0,42308.0,0.0667]
[1646354100782,0.09261937,42311.0,42308.0,0.0667]
[1646354101584,0.09261937,42315.0,42312.0,0.27785811]
[1646354102042,0.024,42318.0,42312.0,0.32525811]
[1646354102242,0.11661937,42318.0,42312.0,0.32525811]
[1646354102445,0.024,42318.0,42312.0,0.32525811]
[1646354102642,0.09261937,42313.0,42312.0,0.32525811]
[1646354103043,0.11661937,42318.0,42312.0,0.38437411]
[1646354103241,0.11661937,42318.0,42312.0,0.32525811]
[1646354103444,0.09261937,42313.0,42312.0,0.27785811]
[1646354103745,0.024,42318.0,42312.0,0.57785811]
[1646354103746,0.09261937,42315.0,42312.0,0.57785811]
[1646354103942,0.024,42318.0,42313.0,0.0474]
[1646354104144,0.024,42318.0,42313.0,0.106513]
[1646354105143,0.003,42319.0,42314.0,0.01252318]
[1646354105345,0.003,42319.0,42316.0,0.01356013]
[1646354105545,0.09261937,42331.0,42328.0,0.059092]
[1646354105794,0.09261937,42331.0,42329.0,0.0474]
[1646354105985,0.002,42334.0,42330.0,0.0474]
[1646354105986,0.26931937,42334.0,42330.0,0.0474]
[1646354106185,0.09461937,42334.0,42331.0,0.0474]
[1646354106389,0.09461937,42334.0,42332.0,0.0474]
[1646354106585,0.09461937,42334.0,42332.0,0.0949189]
[1646354106785,0.002,42334.0,42332.0,0.0949189]
[1646354107187,0.002,42334.0,42332.0,0.3949189]
[1646354107387,0.002,42334.0,42332.0,0.4794989]
[1646354107586,0.002,42334.0,42332.0,0.43198]
[1646354107786,0.002,42343.0,42334.0,0.03691726]
[1646354107989,0.002,42343.0,42338.0,0.02354]
[1646354108188,0.002,42343.0,42340.0,0.01622606]
[1646354108386,0.002,42343.0,42342.0,0.7601236]
[1646354108586,0.002,42343.0,42342.0,1.2475236]
[1646354108892,0.002,42348.0,42342.0,1.1075236]
[1646354109190,0.001,42350.0,42345.0,0.01494784]
[1646354109390,0.002,42356.0,42347.0,0.01385275]
[1646354109640,0.002,42356.0,42348.0,1.47912]
[1646354109837,0.27387458,42364.0,42352.0,0.04748748]
[1646354110041,0.02354,42369.0,42353.0,0.0474]
[1646354110042,0.0228337,42368.0,42353.0,0.0474]
[1646354110238,0.09261937,42361.0,42353.0,0.0474]
[1646354110436,0.10461937,42363.0,42357.0,0.04748748]
[1646354110636,0.09261937,42360.0,42358.0,0.0474]
[1646354110837,0.09261937,42360.0,42359.0,0.09487908]
[1646354111036,0.09261937,42360.0,42359.0,0.09487515]
[1646354113140,0.012,42363.0,42359.0,0.09487515]
[1646354113386,0.012,42363.0,42362.0,0.14]
[1646354113588,0.012,42363.0,42362.0,0.0474]
[1646354113786,0.10461937,42363.0,42362.0,0.0474]
[1646354114589,0.012,42363.0,42362.0,0.0474]
[1646354114788,0.10461937,42363.0,42362.0,0.0474]
[1646354115990,0.012,42363.0,42362.0,0.0474]
[1646354116190,0.10461937,42363.0,42362.0,0.0474]
[1646354116695,0.012,42363.0,42362.0,0.0524]
[1646354117137,0.012,42363.0,42362.0,0.1924]
[1646354117538,0.012,42363.0,42362.0,0.0524]
[1646354117938,0.012,42363.0,42362.0,0.0474]
[1646354119037,0.0118,42363.0,42362.0,0.0474]
[1646354120241,0.09261937,42365.0,42363.0,7.832e-05]
[1646354120546,0.0228337,42368.0,42364.0,0.0474]
[1646354120811,0.0228337,42368.0,42366.0,0.01314365]
[1646354121005,0.0228337,42368.0,42367.0,0.7897]
[1646354121202,0.001,42375.0,42368.0,0.7233]
[1646354121403,0.02172891,42382.0,42369.0,0.80502911]
[1646354121604,0.1729,42388.0,42369.0,0.80502911]
[1646354121605,0.02172891,42374.0,42370.0,0.0474]
[1646354121808,0.02172891,42371.0,42370.0,0.0474]
[1646354121999,0.01179,42386.0,42370.0,0.0474]
[1646354122000,0.18533,42386.0,42370.0,0.0474]
[1646354122200,0.02172891,42374.0,42370.0,0.0474]
[1646354122601,0.05904,42374.0,42370.0,0.0474]
[1646354123300,0.05404,42374.0,42370.0,0.0474]
[1646354123502,0.22786838,42374.0,42370.0,0.0474]